lending/lending_fUSD_20240110
["ID","MTS","AMOUNT","RATE_DAILY","PERIOD"]
[311006800,1704858632265,-150.0,0.00022598,2]
[311006801,1704858632274,-150.0,0.00022598,2]
[311006802,1704858632283,-13521.9137,0.00022599,2]
[311006803,1704858632293,-2039.06513345,0.00022686,2]
[311006804,1704858632303,-150.99,0.00022686,2]
[311006805,1704858632312,-499.99,0.00022686,2]
[311006806,1704858632321,-1500.63529458,0.00022696,2]
[311006807,1704858632330,-1500.73569381,0.00022696,2]
[311006808,1704858632340,-17726.07509947,0.00022696,2]
[311006809,1704858632350,-1426.53997911,0.00022697,2]
[311006810,1704858632359,-4479.63512611,0.00022697,2]
[311006811,1704858632368,-403.90330069,0.00022697,2]
[311006812,1704858632378,-2323.10367527,0.00022697,2]
[311006813,1704858632387,-377.932488,0.00022697,2]
[311006814,1704858632396,-697.99122627,0.00022697,2]
[311006815,1704858632406,-385.69350782,0.00022697,2]
[311006816,1704858632416,-699.88182771,0.00022697,2]
[311006817,1704858632425,-264.14060132,0.00022697,2]
[311006818,1704858632435,-203.19013423,0.00022697,2]
[311006819,1704858632444,-155.68639481,0.00022697,2]
[311006820,1704858632454,-764.76600342,0.00022697,2]
[311006821,1704858632463,-338.12034997,0.00022697,2]
[311006822,1704858632473,-197.24857041,0.00022697,2]
[311006823,1704858632482,-155.56247496,0.00022697,2]
[311006825,1704858632492,-3186.82413987,0.00022697,2]
[311006826,1704858632501,-215.2539108,0.00022698,2]
[311006827,1704858632511,-321.80713444,0.00022698,2]
[311006828,1704858632520,-19869.6898829,0.00022699,2]
[311006829,1704858632532,-5218.91063556,0.00022699,2]
[311006830,1704858632632,-1867.07479286,0.00022699,2]
[311006831,1704858632734,-1120.32492377,0.00022699,2]
[311006832,1704858632758,-319.354,0.00022699,2]
[311006833,1704858632769,-6275.16379703,0.00022699,2]
[311006834,1704858632780,-2857.23232542,0.00022699,2]
[311006838,1704858638150,-965.07314246,0.00022699,2]
[311006839,1704858638159,-113.94513566,0.00022699,2]
[311006840,1704858638208,-173.72036434,0.00022699,2]
[311006841,1704858638217,-501.28063992,0.00022716,2]
[311006842,1704858638227,-501.28063989,0.00022762,2]
[311006843,1704858638236,-9991.70322431,0.000228,2]
[311006844,1704858638267,-570.02004696,0.000228,2]
[311006845,1704858638329,-292.3622361,0.000228,2]
[311006846,1704858638341,-29231.01899263,0.000228,2]
[311006847,1704858638350,-501.28063989,0.00022808,2]
[311006848,1704858638359,-200.0,0.00022816,2]
[311006849,1704858638369,-330.64,0.00022833,2]
[311006850,1704858638379,-501.28063989,0.00022854,2]
[311006851,1704858638388,-158.75,0.0002287,2]
[311006852,1704858638398,-588.17124154,0.00022883,2]
[311006853,1704858638407,-7236.4207,0.000229,2]
[311006854,1704858638421,-6974.37714567,0.000229,2]
[311006855,1704858638430,-742.16809426,0.000229,2]
[311006856,1704858638439,-501.28063989,0.000229,2]
[311006857,1704858638449,-510.72,0.00022931,2]
[311006858,1704858638459,-420.66446014,0.00022987,2]
[311006859,1704858638468,-214.51485164,0.0002299,2]
[311006860,1704858638478,-155.0,0.00022997,2]
[311006861,1704858638487,-11127.26618364,0.00022997,2]
[311006862,1704858638497,-10291.74058811,0.00022998,2]
[311006863,1704858638507,-155.27653502,0.00022998,2]
[311006864,1704858638516,-318.17700689,0.00022998,2]
[311006865,1704858638525,-155.0,0.00022998,2]
[311006866,1704858638535,-278.75448039,0.00022998,2]
[311006867,1704858638544,-497.26533272,0.00022998,2]
[311006868,1704858638556,-522.74974495,0.00022998,2]
[311006869,1704858638565,-388.55828596,0.00022999,2]
[311006870,1704858638574,-725.0,0.00023,2]
[311006871,1704858638584,-433344.06976806,0.00023,2]
[311006872,1704858638595,-3790.55062379,0.00023,2]
[311006873,1704858638617,-1353.83637752,0.00023,2]
[311006875,1704858638629,-965.21631766,0.00023,2]
[311006878,1704858638642,-871.51008591,0.00023,2]
[311007021,1704858640632,-289.45711476,0.00023,2]
[311007022,1704858641324,-526.19261016,0.00022698,2]
[311007023,1704858641333,-133262.91032087,0.00023,2]
[311007034,1704858643501,-1725.3054781,0.00023,2]
[311007085,1704858646363,-891.78287629,0.00022999,2]
[311007086,1704858646375,-362.51413863,0.00022999,2]
[311007087,1704858646385,-897.44294655,0.00023,2]
[311007088,1704858646397,-728.65,0.00023,2]
[311007089,1704858646448,-1065.18041574,0.00023,2]
[311007090,1704858646507,-4149.38318394,0.00023,2]
[311007091,1704858646535,-1010.0,0.00023,2]
[311007092,1704858646546,-1176.31721392,0.00023,2]
[311007093,1704858646558,-15835.73178851,0.00023,2]
[311007094,1704858646570,-18211.95510115,0.00023,2]
[311007095,1704858646602,-1901.45826781,0.00023,2]
[311007096,1704858646614,-353.86054689,0.00023,2]
[311007097,1704858646626,-1026.83224497,0.00023,2]
[311007098,1704858646637,-358.54738649,0.00023,2]
[311007099,1704858646649,-1286.59330261,0.00023,2]
[311007100,1704858646661,-2052.43900783,0.00023,2]
[311007101,1704858646680,-339.08611687,0.00023,2]
[311007102,1704858646692,-516.79912982,0.00023,2]
[311007103,1704858646893,-403.74961218,0.00023,2]
[311007104,1704858646904,-1266.84474446,0.00023,2]
[311007106,1704858646973,-518.90570714,0.00023,2]
[311007108,1704858646985,-8197.31876693,0.00023,2]
[311007109,1704858677846,157.04050748,0.00020698,2]
[311007110,1704858681184,1000.0,0.00037173,30]
[311007111,1704858682019,151.4011,0.00022501,2]
[311007112,1704858683529,151.4011,0.00022501,2]
[311007113,1704858683883,425.39962953,0.00037173,120]
[311007114,1704858684471,151.4011,0.00022501,2]
[311007115,1704858685327,151.4011,0.00022501,2]
[311007116,1704858686178,151.4011,0.00022501,2]
[311007117,1704858688082,151.4011,0.00022501,2]
[311007118,1704858688440,3920.75288229,0.00037173,30]
[311007119,1704858688529,151.4011,0.00022501,2]
[311007120,1704858688836,151.4011,0.00022501,2]
[311007122,1704858689773,151.4011,0.00022501,2]
[311007123,1704858690577,151.4011,0.00022501,2]
[311007124,1704858691580,151.4011,0.00022501,2]
[311007125,1704858692501,151.4011,0.00022501,2]
[311007126,1704858693382,151.4011,0.00022501,2]
[311007127,1704858694271,151.4011,0.00022501,2]
[311007128,1704858695288,151.4011,0.00022501,2]
[311007129,1704858695366,1000.0,0.00037173,30]
[311007130,1704858699096,151.4011,0.00022501,2]
[311007131,1704858699582,151.4011,0.00022501,2]
[311007132,1704858700232,151.4011,0.00022501,2]
[311007133,1704858701145,151.4011,0.00022501,2]
[311007134,1704858701986,151.4011,0.00022501,2]
[311007135,1704858703692,588.17124154,0.00022483,2]
[311007136,1704858715713,3948.78590499,0.00037173,30]
[311007139,1704858723348,1000.0,0.00037173,120]
[311007141,1704858732385,163.4997591,0.00037173,30]
[311007142,1704858819459,2639.999999,0.00037173,60]
[311007143,1704858821027,4277.99123263,0.00037173,30]
[311007144,1704858834087,254.02246494,0.00037173,30]
[311007145,1704858836661,196.01078236,0.00022904,6]
[311007146,1704858842463,165.08306559,0.00037173,120]
[311007147,1704858864509,553.97923043,0.00037173,60]
[311007148,1704858864597,3941.51283908,0.00037173,120]
[311007149,1704858865360,157.11431411,0.00037173,120]
[311007150,1704858865605,293.6695992,0.00037173,120]
[311007151,1704858865673,546.23774761,0.00037173,120]
[311007152,1704858866126,3704.72484897,0.00037173,30]
[311007153,1704858868206,256.69433007,0.00037173,30]
[311007154,1704858869242,192.42856765,0.00037173,120]
[311007155,1704858869285,756.0,0.00037173,120]
[311007156,1704858869334,1797.07142343,0.00037173,120]
[311007157,1704858885646,1965.990009,0.00037168,30]
[311007158,1704858904408,366.51,0.00021903,2]
[311007159,1704858924672,151.86265175,0.00022,2]
[311007160,1704858929777,408.58,0.00021906,2]
[311007161,1704858940118,-1254.29701492,0.00022579,2]
[311007162,1704858940138,-160.83274523,0.00022579,2]
[311007163,1704858940158,-522.98998751,0.0002258,2]
[311007164,1704858940179,-420.66446014,0.00022585,2]
[311007165,1704858940203,-150.0,0.00022594,2]
[311007166,1704858940225,-11591.2157922,0.00022595,2]
[311007167,1704858944674,152.68,0.00022076,2]
[311007168,1704858944800,152.68,0.00022192,2]
[311007169,1704858945022,152.68,0.00022308,2]
[311007170,1704858945754,152.68,0.00022424,2]
[311007171,1704858982862,156.80862588,0.000229,6]
[311007172,1704858989478,1111.21629467,0.000224,2]
[311007173,1704858997482,19431.4058968,0.00037168,30]
[311007174,1704859009268,545.08,0.00021958,2]
[311007175,1704859050325,158.75,0.00022095,2]
[311007176,1704859053944,206.0,0.00021735,2]
[311007177,1704859097698,178.44161643,0.00022,2]
[311007178,1704859125967,163.19,0.00022189,2]
[311007179,1704859128455,291.69,0.00020031,2]
[311007180,1704859128675,291.69,0.00022295,2]
[311007181,1704859140804,617.92309023,0.00022,2]
[311007182,1704859145714,618.7517,0.00022496,2]
[311007183,1704859212966,19229.21375205,0.00037175,30]
[311007184,1704859306075,1932.752725,0.00037175,30]
[311007185,1704859337792,342.07,0.00021934,2]
[311007186,1704859392862,304.949637,0.00037175,30]
[311007187,1704859447672,315.45,0.00021906,2]
[311007188,1704859447874,315.45,0.00022021,2]
[311007189,1704859448098,315.45,0.00022137,2]
[311007190,1704859448314,315.45,0.00022252,2]
[311007191,1704859448534,315.45,0.00022367,2]
[311007192,1704859448739,315.45,0.00022482,2]
[311007193,1704859450211,500.0,0.00037175,120]
[311007194,1704859483634,4698.92383771,0.00037175,30]
[311007195,1704859484858,158.75,0.00022019,2]
[311007196,1704859515441,162.86421973,0.00022496,2]
[311007197,1704859521448,563.93,0.00021868,2]
[311007198,1704859580893,262.52,0.00019863,2]
[311007199,1704859581143,262.52,0.00022127,2]
[311007200,1704859582721,20751.15851979,0.00037175,30]
[311007202,1704859642498,152.42883492,0.00022,2]
[311007203,1704859677917,156.11,0.00021998,2]
[311007205,1704859767292,319.26,0.0002179,2]
[311007206,1704859774291,206.0,0.00022127,2]
[311007207,1704859779910,213.81,0.00021784,2]
[311007208,1704859786454,1965.990009,0.00037175,30]
[311007213,1704859828329,-801.33142048,0.00022513,2]
[311007214,1704859828353,-162.8642197,0.00022536,2]
[311007215,1704859828378,-152.68,0.0002254,2]
[311007216,1704859828400,-162.8642197,0.00022577,2]
[311007217,1704859828422,-71.50172501,0.00022595,2]
[311007218,1704859828443,-150.0,0.00022595,2]
[311007219,1704859828464,-150.0,0.00022595,2]
[311007220,1704859828485,-11127.26618364,0.00022596,2]
[311007221,1704859828506,-3000.26578585,0.00022596,2]
[311007222,1704859828527,-748.77970036,0.00022596,2]
[311007223,1704859828557,-1081.71278287,0.00022596,2]
[311007224,1704859828585,-2408.65162476,0.00022597,4]
[311007225,1704859828612,-315.45,0.00022598,2]
[311007226,1704859828636,-33330.41652738,0.00022598,2]
[311007227,1704859828659,-3219.17,0.00022598,2]
[311007228,1704859828684,-162.8642197,0.00022617,2]
[311007229,1704859828707,-152.68,0.00022657,2]
[311007230,1704859828729,-162.8642197,0.00022658,2]
[311007231,1704859828750,-162.8642197,0.00022698,2]
[311007232,1704859828771,-16850.6436,0.000227,2]
[311007233,1704859828795,-883.94526294,0.000227,2]
[311007234,1704859828815,-300.76838395,0.000227,2]
[311007235,1704859828835,-897.56724582,0.000227,2]
[311007236,1704859828859,-315.45,0.00022713,2]
[311007237,1704859828881,-162.8642197,0.00022738,2]
[311007238,1704859828902,-300.76838393,0.00022748,2]
[311007239,1704859828923,-319.26,0.00022769,2]
[311007240,1704859828947,-152.68,0.00022773,2]
[311007241,1704859828969,-162.8642197,0.00022779,2]
[311007242,1704859829002,-300.76838393,0.00022795,2]
[311007243,1704859829023,-327407.1776,0.000228,2]
[311007244,1704859829046,-1000.0,0.000228,2]
[311007245,1704859829068,-162.8642197,0.00022819,2]
[311007246,1704859829090,-315.45,0.00022828,2]
[311007247,1704859829111,-300.76838393,0.00022843,2]
[311007248,1704859829132,-162.8642197,0.0002286,2]
[311007249,1704859829155,-163.19,0.00022885,2]
[311007250,1704859829178,-152.68,0.00022889,2]
[311007251,1704859829199,-300.76838393,0.0002289,2]
[311007252,1704859829220,-26262.9139,0.00022897,2]
[311007253,1704859829240,-33031.8382,0.00022898,2]
[311007254,1704859829261,-8397.040847,0.000229,2]
[311007255,1704859829283,-8616.75218541,0.000229,2]
[311007256,1704859829306,-199.14271794,0.000229,2]
[311007257,1704859829327,-162.8642197,0.000229,2]
[311007258,1704859829347,-167.00328752,0.000229,2]
[311007259,1704859829370,-10778.34657943,0.000229,2]
[311007260,1704859829390,-792.98159477,0.000229,2]
[311007261,1704859829409,-534.70814192,0.000229,2]
[311007262,1704859829430,-167.8236252,0.000229,2]
[311007263,1704859829450,-188.1974989,0.000229,2]
[311007264,1704859829471,-4151.1821454,0.000229,2]
[311007265,1704859829495,-315.45,0.00022944,2]
[311007266,1704859829519,-271.01866656,0.0002299,2]
[311007267,1704859829540,-271.01866656,0.0002299,2]
[311007268,1704859829564,-271.01866656,0.0002299,2]
[311007269,1704859829586,-318.17700689,0.00022998,2]
[311007270,1704859829607,-278.75448039,0.00022998,2]
[311007271,1704859829630,-155.27653502,0.00022998,2]
[311007272,1704859829653,-155.0,0.00022998,2]
[311007273,1704859829675,-388.55828596,0.00022998,2]
[311007274,1704859829696,-497.26533272,0.00022998,2]
[311007275,1704859829722,-271.76114414,0.00022998,2]
[311007276,1704859829746,-161.44781603,0.00022999,2]
[311007277,1704859829770,-150.01,0.00022999,2]
[311007278,1704859829792,-3290.92677058,0.00022999,2]
[311007279,1704859829816,-300.0,0.00022999,2]
[311007280,1704859829837,-300.0,0.00022999,2]
[311007281,1704859829857,-300.0,0.00022999,2]
[311007282,1704859829879,-300.0,0.00022999,2]
[311007283,1704859829901,-300.0,0.00022999,2]
[311007284,1704859829923,-300.0,0.00022999,2]
[311007285,1704859829945,-300.0,0.00022999,2]
[311007286,1704859829968,-302.12699554,0.00022999,2]
[311007287,1704859829989,-1000.0,0.00022999,2]
[311007288,1704859830011,-1000.0,0.00022999,2]
[311007289,1704859830033,-919.23384675,0.00022999,2]
[311007290,1704859830058,-150.0,0.00022999,2]
[311007291,1704859830079,-150.0,0.00022999,2]
[311007292,1704859830100,-150.0,0.00022999,2]
[311007293,1704859830122,-518704.9345392,0.00023,2]
[311007294,1704859830142,-3240.81453283,0.00023,2]
[311007295,1704859830162,-936.62340589,0.00023,2]
[311007296,1704859830182,-3517591.09372279,0.00023,2]
[311007297,1704859830206,-227466.3669177,0.00023,2]
[311007308,1704859832484,150.01,0.00022999,2]
[311007309,1704859832561,-408.58,0.00023002,2]
[311007310,1704859832570,-152.68,0.00023005,2]
[311007311,1704859832579,-55.09924009,0.00023035,2]
[311007312,1704859832660,-399.90157605,0.00023035,2]
[311007313,1704859832672,-437.58883467,0.00023035,2]
[311007314,1704859832681,-315.45,0.00023059,2]
[311007315,1704859832690,-152.61,0.00023078,2]
[311007316,1704859832698,-801.33142048,0.00023118,2]
[311007317,1704859832707,-152.68,0.00023121,2]
[311007318,1704859832716,-572.82586086,0.0002313,2]
[311007319,1704859832732,-508.47962113,0.0002313,2]
[311007320,1704859832747,-348.8071346,0.0002313,2]
[311007321,1704859832767,-804.42570392,0.0002313,2]
[311007322,1704859832778,-409.96149532,0.0002313,2]
[311007323,1704859832790,-1343.63439178,0.0002313,2]
[311007324,1704859832800,-227.03,0.0002315,2]
[311007325,1704859832810,-315.45,0.00023174,2]
[311007326,1704859832819,-152.68,0.00023238,2]
[311007327,1704859832829,-394.96927842,0.00023288,2]
[311007328,1704859832838,-10.48962808,0.00023288,2]
[311007329,1704859832850,-178.91773413,0.00023288,2]
[311007330,1704859832859,-368.25940491,0.00023288,2]
[311007331,1704859832869,-362.24170773,0.00023288,2]
[311007332,1704859832878,-494.04239114,0.00023288,2]
[311007333,1704859832887,-500.0,0.00023288,4]
[311007334,1704859832896,-500.0,0.00023288,4]
[311007335,1704859832905,-505.51881511,0.00023288,4]
[311007336,1704859832914,-422.20170995,0.00023288,4]
[311007337,1704859832924,-74.54618954,0.00023288,4]
[311007338,1704859832951,3290.92677058,0.00022999,2]
[311007339,1704859833051,-82.53832059,0.00023288,4]
[311007340,1704859833060,-494.93654415,0.00023288,4]
[311007342,1704859837342,150.01,0.00022999,2]
[311007343,1704859837792,3290.92677058,0.00022999,2]
[311007361,1704859838503,-5.06345585,0.00023288,4]
[311007362,1704859838513,-500.0,0.00023288,4]
[311007363,1704859838523,-470.53820049,0.00023288,4]
[311007364,1704859838533,-609.48262093,0.00023288,4]
[311007365,1704859838544,-500.0,0.00023288,4]
[311007366,1704859838559,-315.45,0.00023289,2]
[311007367,1704859838569,-152.68,0.00023354,2]
[311007368,1704859838578,-315.45,0.00023405,2]
[311007369,1704859838588,-152.68,0.0002347,2]
[311007370,1704859838599,-171.03,0.00023495,2]
[311007371,1704859838608,-152.61,0.00023514,2]
[311007372,1704859838618,-315.45,0.0002352,2]
[311007373,1704859838633,-163.19,0.00023581,2]
[311007374,1704859838643,-152.68,0.00023586,2]
[311007375,1704859838653,-315.45,0.00023635,2]
[311007376,1704859838664,-1824.0,0.000237,2]
[311007377,1704859838674,-152.68,0.00023702,2]
[311007378,1704859838684,-319.26,0.00023747,2]
[311007379,1704859838694,-315.45,0.00023751,2]
[311007380,1704859838704,-152.68,0.00023819,2]
[311007381,1704859838714,-315.45,0.00023866,2]
[311007382,1704859838724,-152.68,0.00023935,2]
[311007383,1704859838734,-152.61,0.00023949,2]
[311007384,1704859838743,-315.45,0.00023981,2]
[311007385,1704859838753,-152.68,0.00024051,2]
[311007386,1704859838764,-315.45,0.00024096,2]
[311007387,1704859838774,-8616.7521853,0.00024097,2]
[311007388,1704859838784,-408.58,0.00024097,2]
[311007389,1704859838794,-500.0,0.00024125,2]
[311007391,1704859838804,-152.68,0.00024167,2]
[311007393,1704859838814,-163.19,0.00024276,2]
[311007395,1704859838825,-152.68,0.00024283,2]
[311007397,1704859838834,-167.0,0.00024297,2]
[311007400,1704859838844,-169.75,0.00024297,2]
[311007402,1704859838855,-800.0,0.00024304,2]
[311007404,1704859838866,-518.50183158,0.00024313,2]
[311007406,1704859838876,-262.52,0.00024391,2]
[311007408,1704859838886,-200.0,0.00024452,2]
[311007410,1704859838896,-227.03,0.0002452,2]
[311007412,1704859838906,-502.29,0.00024528,2]
[311007414,1704859838916,-563.93,0.00024601,2]
[311007416,1704859838926,-883.94526294,0.00024609,2]
[311007418,1704859838936,-171.03,0.00024613,2]
[311007420,1704859838946,-206.0,0.00024652,5]
[311007423,1704859838956,-250.0,0.00024658,2]
[311007425,1704859838966,-545.08,0.00024702,2]
[311007427,1704859838976,-319.26,0.00024726,2]
[311007429,1704859838985,-163.19,0.00024972,2]
[311007431,1704859838995,-1016.9503095,0.00025,2]
[311007433,1704859839005,-339.89791589,0.00025,2]
[311007435,1704859839015,-194.64081445,0.00025,2]
[311007437,1704859839025,-155.21970602,0.00025,2]
[311007439,1704859839035,-201.6885411,0.00025,2]
[311007441,1704859839044,-167.08798767,0.00025,2]
[311007443,1704859839054,-1246.60618459,0.00025,2]
[311007446,1704859839067,-1581.63681732,0.00025,2]
[311007448,1704859839077,-348.67776234,0.00025,2]
[311007449,1704859839087,-350.0,0.00025,3]
[311007450,1704859839097,-650.0,0.00025,2]
[311007451,1704859839113,-507.22009601,0.0002509,2]
[311007452,1704859839123,-408.58,0.00025192,2]
[311007453,1704859839133,-8616.7521853,0.00025293,2]
[311007454,1704859839143,-502.29,0.00025421,2]
[311007455,1704859839152,-500.0,0.00025433,2]
[311007456,1704859839162,-1000.0,0.000255,2]
[311007457,1704859839172,-163.19,0.00025668,2]
[311007458,1704859839182,-319.26,0.00025704,2]
[311007459,1704859839191,-200.0,0.00025791,2]
[311007460,1704859839202,-800.0,0.00025791,2]
[311007461,1704859839211,-200.0,0.00025791,2]
[311007462,1704859839221,-150.0,0.00026079,2]
[311007463,1704859839231,-200.0,0.00026088,2]
[311007464,1704859839241,-408.58,0.00026287,2]
[311007465,1704859839253,-167.0,0.00026302,2]
[311007466,1704859839263,-502.29,0.00026314,2]
[311007467,1704859839273,-163.19,0.00026363,2]
[311007468,1704859839282,-8595.72692537,0.000264,2]
[311007469,1704859839292,-8616.7521853,0.0002649,2]
[311007470,1704859839302,-883.94526294,0.00026518,3]
[311007471,1704859839312,-5819.86,0.00026575,2]
[311007472,1704859839322,-12574.17,0.00026575,2]
[311007473,1704859839332,-262.52,0.00026654,2]
[311007474,1704859839342,-319.26,0.00026682,2]
[311007475,1704859839352,-500.0,0.00026742,2]
[311007476,1704859839362,-415.38419465,0.00027,2]
[311007477,1704859839371,-400.0,0.00027,3]
[311007478,1704859839381,-206.0,0.00027177,9]
[311007479,1704859839391,-502.29,0.00027207,2]
[311007480,1704859839400,-563.93,0.00027335,2]
[311007481,1704859839410,-1664.28149971,0.00027394,2]
[311007482,1704859839421,-248.53826855,0.00027394,2]
[311007483,1704859839430,-435.11481979,0.00027395,2]
[311007484,1704859839440,-248.92084833,0.00027397,5]
[311007485,1704859839450,-155.0,0.00027397,2]
[311007486,1704859839460,-492.0,0.00027397,4]
[311007487,1704859839470,-13842.0,0.00027397,4]
[311007488,1704859839480,-925.19,0.00027397,2]
[311007489,1704859839490,-250.0,0.00027397,2]
[311007490,1704859839500,-500.0,0.00027397,2]
[311007491,1704859839509,-250.0,0.000274,2]
[311007492,1704859839519,-545.08,0.00027447,2]
[311007493,1704859839529,-675.94364293,0.000275,4]
[311007494,1704859839539,-925.19,0.00027556,2]
[311007495,1704859839548,-319.26,0.00027661,2]
[311007496,1704859839559,-8616.7521853,0.00027687,2]
[311007497,1704859839569,-925.19,0.00027714,2]
[311007498,1704859839578,-200.0,0.00027723,2]
[311007499,1704859839588,-925.19,0.00027872,2]
[311007500,1704859839598,-533.02390267,0.00027881,2]
[311007501,1704859839608,-407.39,0.00027918,2]
[311007502,1704859839618,-400.84,0.00027918,2]
[311007503,1704859839627,-400.1,0.00027918,2]
[311007504,1704859839637,-1873.25,0.00027918,2]
[311007505,1704859839647,-216.44846724,0.00028,2]
[311007506,1704859839657,-202.68612241,0.00028,2]
[311007507,1704859839667,-925.19,0.0002803,2]
[311007508,1704859839677,-500.0,0.00028051,2]
[311007509,1704859839686,-502.29,0.000281,2]
[311007510,1704859839696,-925.19,0.00028189,2]
[311007511,1704859839706,-299.48,0.00028203,2]
[311007512,1704859839715,-167.0,0.00028307,2]
[311007513,1704859839725,-925.19,0.00028347,2]
[311007514,1704859839735,-883.94526294,0.00028427,4]
[311007515,1704859839745,-925.19,0.00028505,2]
[311007516,1704859839755,-400.84,0.00028575,2]
[311007517,1704859839765,-400.84,0.00028575,2]
[311007518,1704859839774,-939.21,0.00028575,2]
[311007519,1704859839784,-939.21,0.00028575,2]
[311007520,1704859839793,-400.84,0.00028575,2]
[311007521,1704859839803,-319.26,0.00028639,2]
[311007522,1704859839813,-925.19,0.00028664,2]
[311007523,1704859839824,-800.0,0.00028766,5]
[311007524,1704859839834,-155.0,0.00028767,2]
[311007525,1704859839844,-925.19,0.00028822,2]
[311007526,1704859839853,-8616.7521853,0.00028884,2]
[311007527,1704859839863,-262.52,0.00028918,2]
[311007528,1704859839873,-502.29,0.00028993,2]
[311007529,1704859839883,-450.0,0.00029,3]
[311007530,1704859839893,-939.21,0.00029226,2]
[311007531,1704859839902,-939.21,0.00029226,2]
[311007532,1704859839912,-939.21,0.00029226,2]
[311007533,1704859839922,-400.84,0.00029226,2]
[311007534,1704859839932,-937.65,0.00029226,2]
[311007535,1704859839942,-400.84,0.00029226,2]
[311007536,1704859839951,-400.84,0.00029226,2]
[311007537,1704859839961,-167.0032875,0.00029345,2]
[311007538,1704859839971,-792.98159477,0.00029345,2]
[311007539,1704859839981,-167.82362519,0.00029345,2]
[311007540,1704859839992,-188.1974989,0.00029345,2]
[311007541,1704859840001,-4151.18214539,0.00029345,2]
[311007542,1704859840011,-500.0,0.00029359,2]
[311007543,1704859840021,-200.0,0.00029359,2]
[311007544,1704859840031,-19095.86780733,0.000295,2]
[311007545,1704859840041,-939.21,0.00029534,2]
[311007546,1704859840050,-400.84,0.00029534,2]
[311007547,1704859840061,-939.21,0.00029534,2]
[311007548,1704859840071,-400.84,0.00029534,2]
[311007549,1704859840080,-939.21,0.00029534,2]
[311007550,1704859840090,-927.77,0.00029534,2]
[311007551,1704859840099,-400.84,0.00029534,2]
[311007552,1704859840109,-400.84,0.00029534,2]
[311007553,1704859840119,-400.84,0.00029534,2]
[311007554,1704859840128,-248.73,0.00029534,2]
[311007555,1704859840138,-319.26,0.00029618,2]
[311007556,1704859840148,-1005.9087,0.00029699,2]
[311007557,1704859840157,-206.0,0.00029701,13]
[311007558,1704859840167,-153.28,0.00029753,2]
[311007559,1704859840177,-627.82,0.00029753,2]
[311007560,1704859840187,-150.0,0.00029753,2]
[311007561,1704859840198,-152.18,0.00029753,2]
[311007562,1704859840208,-833.74,0.00029753,2]
[311007563,1704859840218,-254.42,0.00029788,2]
[311007564,1704859840227,-195.63942812,0.000298,2]
[311007565,1704859840237,-21539.79258178,0.000298,2]
[311007566,1704859840246,-22844.69771172,0.000299,2]
[311007567,1704859840255,-22844.69771169,0.000299,2]
[311007568,1704859840265,-22844.69771169,0.000299,2]
[311007569,1704859840274,-22844.69771169,0.000299,2]
[311007570,1704859840284,-22844.69771169,0.000299,2]
[311007571,1704859840293,-22844.69771169,0.000299,2]
[311007572,1704859840303,-22844.69771169,0.000299,2]
[311007573,1704859840312,-22844.69771169,0.000299,2]
[311007574,1704859840322,-22844.69771169,0.000299,2]
[311007575,1704859840331,-22844.69771169,0.000299,2]
[311007576,1704859840341,-22844.69771169,0.000299,2]
[311007577,1704859840350,-22844.69771169,0.000299,2]
[311007578,1704859840360,-22844.69771169,0.000299,2]
[311007579,1704859840369,-22844.69771169,0.000299,2]